bitfinex-derivatives/quotes_BTCF0:USTF0_20260127
["timestamp","ask_amount","ask_price","bid_price","bid_amount"]
[1769524271239,0.011347,88248.0,88231.0,0.10208]
[1769524271544,0.00934317,88253.0,88231.0,0.113429]
[1769524271845,0.011346,88250.0,88231.0,0.10208]
[1769524272034,0.011346,88250.0,88232.0,0.011349]
[1769524272236,0.00934317,88252.0,88225.0,0.01145758]
[1769524272528,0.113426,88253.0,88232.0,0.011348]
[1769524272732,0.10208,88253.0,88227.0,0.00954636]
[1769524272950,0.10208,88253.0,88226.0,0.10208]
[1769524272951,0.08711821,88253.0,88230.0,0.00954636]
[1769524273243,0.08711821,88253.0,88233.0,0.00954636]
[1769524273638,0.08711821,88253.0,88240.0,0.011347]
[1769524274044,0.07711821,88253.0,88244.0,0.011347]
[1769524274237,0.06711821,88253.0,88244.0,0.011347]
[1769524274428,0.06711821,88253.0,88241.0,0.00954636]
[1769524274632,0.011346,88249.0,88228.0,0.011349]
[1769524274835,0.00934317,88243.0,88229.0,0.10208]
[1769524275631,0.011347,88247.0,88229.0,0.10208]
[1769524275832,0.00934317,88249.0,88220.0,0.11343]
[1769524276039,0.011347,88241.0,88222.0,0.01135]
[1769524276233,0.00934317,88246.0,88220.0,0.10208]
[1769524276441,0.00934317,88246.0,88228.0,0.011349]
[1769524276633,0.06711821,88253.0,88228.0,0.00954636]
[1769524276945,0.06711821,88253.0,88220.0,0.24858912]
[1769524276946,0.10208,88265.0,88244.0,0.00954636]
[1769524277129,0.10208,88267.0,88244.0,0.00954636]
[1769524277328,0.011345,88262.0,88244.0,0.00954636]
[1769524277642,0.00934317,88266.0,88242.0,0.10208]
[1769524277841,0.011345,88258.0,88242.0,0.10208]
[1769524278237,0.00934317,88266.0,88242.0,0.10208]
[1769524278437,0.10208,88267.0,88243.0,0.00954636]
[1769524278832,0.011346,88250.0,88233.0,0.00566685]
[1769524279041,0.011346,88253.0,88234.0,0.10208]
[1769524279349,0.011346,88251.0,88234.0,0.10208]
[1769524279536,0.00934317,88258.0,88234.0,0.10208]
[1769524279742,0.00934317,88256.0,88234.0,0.10208]
[1769524279941,0.011346,88252.0,88234.0,0.10208]
[1769524280141,0.00934317,88256.0,88234.0,0.10208]
[1769524280537,0.011347,88248.0,88234.0,0.10208]
[1769524280731,0.011346,88251.0,88234.0,0.10208]
[1769524280938,0.011346,88249.0,88234.0,0.10208]
[1769524281135,0.011346,88252.0,88234.0,0.011348]
[1769524281449,0.011346,88250.0,88234.0,0.10208]
[1769524281644,0.00934317,88249.0,88225.0,0.00010858]
[1769524281839,0.011347,88246.0,88227.0,0.011349]
[1769524282035,0.011346,88249.0,88226.0,0.10208]
[1769524282236,0.12467036,88264.0,88226.0,0.10208]
[1769524282237,0.0093515,88268.0,88236.0,0.00966844]
[1769524282436,0.10208,88267.0,88244.0,0.00966844]
[1769524282636,0.10208,88273.0,88251.0,0.011346]
[1769524283148,0.10208,88273.0,88253.0,0.00976653]
[1769524283339,0.011342,88285.0,88267.0,0.011344]
[1769524283534,0.011342,88282.0,88263.0,0.011344]
[1769524283845,0.11308,88287.0,88261.0,0.10208]
[1769524283846,0.11308,88287.0,88272.0,0.011343]
[1769524284047,0.11308,88287.0,88265.0,0.00976653]
[1769524284241,0.11308,88287.0,88251.0,0.011346]
[1769524284242,0.00967793,88282.0,88251.0,0.011346]
[1769524284447,0.00967793,88282.0,88252.0,0.10208]
[1769524284448,0.011343,88275.0,88252.0,0.10208]
[1769524284648,0.02101993,88282.0,88252.0,0.10208]
[1769524284845,0.11308,88287.0,88263.0,0.011344]
[1769524285053,0.11308,88287.0,88259.0,0.00980788]
[1769524285244,0.11308,88287.0,88250.0,0.2988]
[1769524285245,0.00967793,88280.0,88251.0,0.011346]
[1769524285445,0.11308,88287.0,88250.0,0.00980788]
[1769524285446,0.00967793,88277.0,88256.0,0.011345]
[1769524285746,0.00967793,88277.0,88252.0,0.10208]
[1769524285944,0.011344,88266.0,88245.0,0.011347]
[1769524286145,0.011345,88264.0,88246.0,0.10208]
[1769524286345,0.011345,88264.0,88241.0,0.00980788]
[1769524286346,0.011345,88262.0,88241.0,0.00980788]
[1769524286548,0.00967793,88262.0,88242.0,0.10208]
[1769524286755,0.011345,88260.0,88243.0,0.10208]
[1769524287052,0.011345,88258.0,88243.0,0.10208]
[1769524287247,0.011345,88261.0,88243.0,0.10208]
[1769524287555,0.011345,88259.0,88243.0,0.10208]
[1769524287845,0.011345,88259.0,88240.0,0.011347]
[1769524288048,0.02102293,88262.0,88242.0,0.10208]
[1769524288240,0.011345,88257.0,88242.0,0.10208]
[1769524288440,0.011345,88260.0,88242.0,0.10208]
[1769524288641,0.00967793,88262.0,88242.0,0.10208]
[1769524289144,0.15785312,88270.0,88237.0,0.10208]
[1769524289145,0.011346,88250.0,88237.0,0.10208]
[1769524289446,0.14650912,88260.0,88226.0,0.11331187]
[1769524289447,0.011347,88242.0,88226.0,0.11331187]
[1769524289641,0.011347,88242.0,88227.0,0.10208]
[1769524289841,0.011348,88240.0,88227.0,0.10208]
[1769524290036,0.00967793,88237.0,88215.0,0.10208]
[1769524290241,0.00967793,88237.0,88206.0,0.01133703]
[1769524290242,0.00967793,88227.0,88206.0,0.01133703]
[1769524290455,0.15785812,88230.0,88202.0,2e-08]
[1769524290456,0.00967793,88219.0,88202.0,2e-08]
[1769524290836,0.14650912,88220.0,88186.0,0.02117601]
[1769524290837,0.00967793,88216.0,88187.0,0.10208]
[1769524291147,0.00011276,88215.0,88199.0,0.011353]
[1769524291352,0.00011276,88215.0,88194.0,0.00986651]
[1769524291540,0.00011276,88215.0,88187.0,0.10208]
[1769524291740,0.011352,88208.0,88187.0,0.10208]
[1769524291946,0.011352,88205.0,88187.0,0.10208]
[1769524292146,0.00967793,88214.0,88186.0,0.0226936]
[1769524292147,0.00967793,88210.0,88186.0,0.0113396]
[1769524293340,0.00011276,88215.0,88201.0,0.011352]
[1769524293549,0.011349,88232.0,88212.0,0.011351]
[1769524293850,0.00967793,88239.0,88208.0,0.00986651]
[1769524294051,0.10212,88258.0,88225.0,0.00986651]
[1769524294354,0.011347,88247.0,88226.0,0.10212]
[1769524294658,0.011347,88244.0,88226.0,0.10212]
[1769524295243,0.011347,88245.0,88227.0,0.011349]
[1769524295457,0.011347,88245.0,88226.0,0.10212]
[1769524295653,0.00967793,88257.0,88230.0,0.011349]
[1769524295858,0.00967793,88257.0,88226.0,0.10212]
[1769524296156,0.022344,88267.0,88228.0,0.00986651]
[1769524296157,0.00967793,88266.0,88228.0,0.00986651]
[1769524296451,0.011,88267.0,88250.0,0.011346]
[1769524296642,0.022344,88267.0,88250.0,0.10212]
[1769524297044,0.011,88267.0,88251.0,0.011346]
[1769524297252,0.011,88267.0,88254.0,0.011346]
[1769524297446,0.10778428,88273.0,88251.0,0.00986651]
[1769524297647,0.10778428,88273.0,88250.0,0.10212]
[1769524297648,0.10778428,88273.0,88254.0,0.00986651]
[1769524297842,0.10778428,88273.0,88250.0,0.10212]
[1769524297843,0.00566428,88273.0,88261.0,0.02121151]
[1769524298149,0.10212,88285.0,88240.0,0.14650912]
[1769524298150,0.011342,88283.0,88263.0,0.00473503]
[1769524298347,0.011342,88280.0,88264.0,0.10212]
[1769524298955,0.011342,88284.0,88264.0,0.10212]
[1769524299151,0.113462,88285.0,88264.0,0.10212]
[1769524299456,0.011342,88282.0,88264.0,0.10212]
[1769524300156,0.10212,88285.0,88254.0,0.00473503]
[1769524300355,0.10212,88285.0,88235.0,0.011348]
[1769524300356,0.00967793,88269.0,88247.0,0.10208]
[1769524300555,0.14650912,88270.0,88233.0,0.00486669]
[1769524300556,0.00967793,88267.0,88233.0,0.00486669]
[1769524300749,0.00967793,88267.0,88236.0,0.11328492]
[1769524301058,0.10208,88273.0,88236.0,0.11328492]
[1769524301059,0.00967793,88252.0,88236.0,0.10208]
[1769524301253,0.011348,88235.0,88223.0,0.10208]
[1769524301450,0.00967793,88246.0,88223.0,0.08906769]
[1769524301848,0.00967793,88246.0,88223.0,0.10041769]
[1769524301849,0.011347,88241.0,88223.0,0.10041769]
[1769524302049,0.00967793,88246.0,88223.0,0.08906769]
[1769524302552,0.00010973,88245.0,88224.0,0.0047573]
[1769524302744,0.10208,88256.0,88233.0,0.011348]
[1769524302948,0.10208,88256.0,88238.0,0.011348]
[1769524303154,0.011346,88253.0,88226.0,0.0043986]
[1769524303349,0.011346,88253.0,88233.0,0.011348]
[1769524303552,0.10208,88256.0,88229.0,0.011349]
[1769524304161,0.10208,88256.0,88226.0,0.0043986]
[1769524304462,0.10208,88256.0,88228.0,0.0043986]
[1769524304960,0.011346,88249.0,88229.0,0.011349]
[1769524305345,0.10208,88256.0,88222.0,0.01135]
[1769524305346,0.011347,88244.0,88222.0,0.01135]
[1769524305553,0.011347,88244.0,88223.0,0.10208]
[1769524305753,0.00967793,88251.0,88218.0,0.00439772]
[1769524305956,0.00967793,88247.0,88218.0,0.00439772]
[1769524306160,0.00967793,88243.0,88208.0,0.00439772]
[1769524306363,0.01135,88221.0,88206.0,0.11341703]
[1769524306865,0.14650912,88240.0,88207.0,0.011352]
[1769524306866,0.02102693,88227.0,88207.0,0.011352]
[1769524307161,0.10208,88228.0,88208.0,0.011352]
[1769524307162,0.113429,88228.0,88208.0,0.011352]
[1769524307463,0.011348,88235.0,88210.0,0.00451301]
[1769524307647,0.011349,88233.0,88212.0,0.01586401]
[1769524307850,0.10212,88234.0,88215.0,0.011351]
[1769524308047,0.10212,88244.0,88219.0,0.00451301]
[1769524308258,0.10212,88244.0,88213.0,0.11335683]
[1769524308259,0.011348,88240.0,88224.0,0.00451301]
[1769524308460,0.011347,88245.0,88225.0,0.011349]
[1769524308663,0.10212,88247.0,88224.0,0.00451301]
[1769524309061,0.00967793,88246.0,88220.0,0.10212]
[1769524309363,0.011349,88233.0,88220.0,0.10212]
[1769524309565,0.011348,88240.0,88220.0,0.10212]
[1769524310060,0.00967793,88246.0,88222.0,0.01135]
[1769524310061,0.02102493,88246.0,88222.0,0.01135]
[1769524310255,0.00685761,88236.0,88221.0,0.00449039]
[1769524310456,0.011348,88239.0,88221.0,0.00449039]
[1769524310763,0.011348,88239.0,88222.0,0.01135]
[1769524311258,0.011348,88239.0,88221.0,0.00449039]
[1769524311765,0.011348,88239.0,88221.0,0.01584039]
[1769524311965,0.011348,88239.0,88221.0,0.00449039]
[1769524312660,0.10212,88247.0,88221.0,0.00449039]
[1769524312864,0.011348,88238.0,88220.0,0.10212]
[1769524313055,0.00999115,88246.0,88220.0,0.10212]
[1769524313056,0.011347,88244.0,88220.0,0.10212]
[1769524313256,0.10212,88247.0,88231.0,0.011349]
[1769524313457,0.10212,88247.0,88234.0,0.011348]
[1769524313656,0.10212,88247.0,88233.0,0.10212]
[1769524314960,0.113467,88247.0,88233.0,0.10212]
[1769524315166,0.011347,88245.0,88233.0,0.10212]
[1769524315971,0.011347,88243.0,88233.0,0.10212]
[1769524316157,0.10212,88247.0,88233.0,0.10212]
[1769524316158,0.011347,88246.0,88233.0,0.10212]
[1769524316974,0.011343,88276.0,88233.0,0.10212]
[1769524316975,0.10212,88259.0,88233.0,0.10212]
[1769524317360,0.011346,88252.0,88234.0,0.011348]
[1769524317866,0.010026,88258.0,88233.0,0.10212]
[1769524318062,0.10212,88259.0,88231.0,0.10212]
[1769524318063,0.010026,88246.0,88231.0,0.10212]
[1769524318365,0.011348,88238.0,88227.0,0.10212]
[1769524318576,0.010026,88246.0,88227.0,0.10212]
[1769524318955,0.010026,88246.0,88215.0,0.29884]
[1769524318956,0.011348,88233.0,88223.0,0.10212]
[1769524319159,0.011348,88233.0,88196.0,0.40848]
[1769524319160,0.01135,88223.0,88216.0,0.10212]
[1769524319356,0.011351,88216.0,88191.0,0.06144065]
[1769524319558,0.011353,88202.0,88200.0,3e-08]
[1769524319761,0.011353,88202.0,88189.0,0.00011236]
[1769524319762,0.011352,88208.0,88190.0,0.10212]
[1769524319964,0.01004676,88215.0,88190.0,0.10212]
[1769524320159,0.011351,88213.0,88190.0,0.10212]
[1769524320371,0.011351,88214.0,88196.0,0.011353]
[1769524320566,0.01004676,88213.0,88190.0,0.10212]
[1769524320774,0.01004676,88213.0,88159.0,0.22437169]
[1769524320775,0.00968684,88197.0,88168.0,0.011357]
[1769524320962,0.00968684,88193.0,88166.0,0.11346218]
[1769524321169,0.11180684,88192.0,88166.0,0.11346218]
[1769524321364,0.11180684,88192.0,88166.0,0.12481918]
[1769524321566,0.00968684,88191.0,88166.0,0.01134218]
[1769524321760,0.00013345,88190.0,88166.0,0.01134218]
[1769524322165,0.00013345,88190.0,88178.0,0.011355]
[1769524322369,0.011348,88235.0,88183.0,0.011355]
[1769524322370,0.10212,88200.0,88183.0,0.011355]
[1769524322673,0.10212,88211.0,88186.0,0.00962437]
[1769524322867,0.10212,88211.0,88198.0,0.011353]
[1769524323265,0.02103484,88234.0,88211.0,0.011351]
[1769524323565,0.10212,88233.0,88219.0,0.01135]
[1769524323768,0.011347,88248.0,88225.0,0.011349]
[1769524323958,0.10212,88239.0,88221.0,0.01135]
[1769524324163,0.00968684,88254.0,88220.0,0.00962437]
[1769524324365,0.10212,88252.0,88233.0,0.011348]
[1769524324570,0.10212,88252.0,88221.0,0.10212]
[1769524324571,0.001,88247.0,88225.0,0.011349]
[1769524324965,0.01073941,88247.0,88226.0,0.10212]
[1769524325271,0.01073941,88247.0,88222.0,0.11334013]
[1769524325272,0.011347,88242.0,88223.0,0.10212]
[1769524325461,0.011347,88246.0,88223.0,0.10212]
[1769524325667,0.01073941,88247.0,88223.0,0.10212]
[1769524325969,0.001,88247.0,88234.0,0.011348]
[1769524326167,0.10212,88252.0,88235.0,0.011348]
[1769524326371,0.10212,88252.0,88224.0,0.11411352]
[1769524326372,0.10212,88252.0,88231.0,0.00078174]
[1769524327058,0.113466,88252.0,88225.0,0.11332664]
[1769524327375,0.011346,88249.0,88225.0,0.011349]
[1769524327673,0.10212,88252.0,88228.0,0.011349]
[1769524327973,0.10212,88252.0,88235.0,0.011348]
[1769524328274,0.011345,88262.0,88235.0,0.10212]
[1769524328573,0.011345,88260.0,88237.0,0.011348]
[1769524328779,0.011346,88254.0,88235.0,0.10212]
[1769524329073,0.10212,88261.0,88235.0,0.10212]
[1769524329270,0.00981749,88260.0,88235.0,0.10212]
[1769524329473,0.011347,88247.0,88235.0,0.10212]
[1769524329770,0.011344,88271.0,88205.0,0.0005475]
[1769524329771,0.00981749,88249.0,88205.0,0.0005475]
[1769524329974,0.011348,88235.0,88206.0,0.10212]
[1769524330275,0.011348,88235.0,88207.0,0.0005475]
[1769524330574,0.011349,88233.0,88212.0,0.011351]
[1769524330770,0.011348,88237.0,88217.0,0.01135]
[1769524330967,0.011347,88247.0,88219.0,0.00045657]
[1769524331173,0.10212,88248.0,88223.0,0.01135]
[1769524331376,0.011347,88242.0,88221.0,0.01135]
[1769524331873,0.00226674,88233.0,88221.0,0.01135]
[1769524332268,0.00226674,88233.0,88223.0,0.01135]
[1769524332467,7.4e-07,88233.0,88220.0,0.10212]
[1769524332671,0.011346,88249.0,88230.0,0.00045583]
[1769524332870,0.011346,88252.0,88230.0,0.01180483]
[1769524333174,0.10212,88254.0,88230.0,0.00045583]
[1769524333474,0.10212,88254.0,88235.0,0.011348]
[1769524333676,0.011346,88252.0,88232.0,0.113469]
[1769524334674,0.00985356,88253.0,88220.0,0.0004393]
[1769524334970,0.00985356,88253.0,88205.0,0.27779504]
[1769524334971,0.00566685,88233.0,88222.0,0.01135]
[1769524335178,0.00566685,88233.0,88226.0,0.011349]
[1769524335362,0.011347,88247.0,88226.0,0.011349]
[1769524335564,0.011347,88247.0,88223.0,0.10212]
[1769524335565,0.011347,88245.0,88223.0,0.11347]
[1769524335767,0.011348,88240.0,88223.0,0.10212]
[1769524335975,0.011348,88236.0,88222.0,0.10212]
[1769524336171,0.10212,88254.0,88210.0,0.0003038]
[1769524336172,0.00989873,88247.0,88210.0,0.0003038]
[1769524336372,0.011345,88262.0,88184.0,0.011355]
[1769524336373,0.01135,88220.0,88211.0,0.21546334]
[1769524336574,0.01135,88220.0,88211.0,0.10212]
[1769524336780,0.10212,88227.0,88211.0,0.10212]
[1769524337080,0.10212,88233.0,88212.0,0.00021041]
[1769524337276,0.10212,88233.0,88219.0,0.01135]
[1769524337471,0.011348,88238.0,88219.0,0.01135]
[1769524337672,0.10212,88240.0,88212.0,0.00021041]
[1769524337883,0.00992986,88251.0,88224.0,0.01135]
[1769524337884,0.10212,88242.0,88224.0,0.01135]
[1769524338083,0.10212,88242.0,88223.0,0.10212]
[1769524338271,0.011347,88241.0,88223.0,0.10212]
[1769524338779,0.00992328,88241.0,88213.0,0.00023013]
[1769524338964,0.011349,88230.0,88213.0,0.10212]
[1769524339168,0.00992328,88233.0,88213.0,0.10212]
[1769524339378,0.011349,88228.0,88213.0,0.10212]
[1769524339576,0.011349,88231.0,88213.0,0.10212]
[1769524340289,0.011348,88240.0,88214.0,0.00023013]
[1769524340582,0.011346,88249.0,88217.0,0.00023013]
[1769524340885,0.00998539,88263.0,88225.0,4.381e-05]
[1769524341072,0.00566428,88273.0,88226.0,0.113469]
[1769524341273,0.011345,88263.0,88244.0,0.011347]
[1769524341581,0.011344,88268.0,88248.0,0.011346]
[1769524341781,0.113464,88270.0,88244.0,0.10212]
[1769524341981,0.011345,88260.0,88244.0,0.10212]
[1769524342174,0.10212,88270.0,88244.0,0.10212]
[1769524342483,0.10212,88270.0,88246.0,0.011347]
[1769524342783,0.10212,88270.0,88244.0,0.10212]
[1769524342980,0.011345,88258.0,88244.0,0.10212]
[1769524343179,0.011345,88261.0,88244.0,0.113467]
[1769524343381,0.10212,88270.0,88244.0,0.10212]
[1769524343884,0.011345,88261.0,88244.0,0.10212]
[1769524344087,0.011346,88253.0,88244.0,0.10212]
[1769524344379,0.011344,88265.0,88218.0,0.22437169]
[1769524344380,0.011346,88249.0,88230.0,0.011349]
[1769524344581,0.0213927,88265.0,88210.0,0.011351]
[1769524344582,0.011345,88257.0,88231.0,0.10212]
[1769524344781,0.0100487,88259.0,88223.0,0.38428]
[1769524344782,0.10212,88256.0,88232.0,0.10212]
[1769524344981,0.011347,88243.0,88232.0,0.10212]
[1769524345284,0.011347,88243.0,88215.0,0.011351]
[1769524345285,0.01004008,88241.0,88216.0,0.011351]
[1769524345485,0.11331637,88255.0,88212.0,0.10212]
[1769524345486,0.011348,88236.0,88212.0,0.10212]
[1769524346083,0.011348,88233.0,88217.0,0.01135]
[1769524346482,0.011348,88233.0,88214.0,0.011351]
[1769524346684,0.011348,88236.0,88211.0,0.10212]
[1769524346886,0.113468,88239.0,88212.0,0.00014457]
[1769524347080,0.113468,88239.0,88216.0,0.00014457]
[1769524347276,0.011347,88246.0,88228.0,0.011349]
[1769524347489,0.10212,88252.0,88228.0,0.00014457]
[1769524347687,0.0209518,88267.0,88248.0,0.00014457]
[1769524347688,0.011,88267.0,88248.0,0.00014457]
[1769524347894,0.011,88267.0,88252.0,0.00014457]
[1769524348198,0.01085543,88267.0,88258.0,0.011345]
[1769524348390,0.011343,88278.0,88252.0,0.00014457]
[1769524348391,0.011344,88270.0,88252.0,0.011346]
[1769524349187,0.011344,88267.0,88251.0,0.10212]
[1769524349788,0.10212,88278.0,88221.0,0.22437169]
[1769524349789,0.01004521,88268.0,88221.0,0.22437169]
[1769524349995,0.10212,88278.0,88207.0,0.011352]
[1769524349996,0.011346,88251.0,88230.0,0.011349]
[1769524350292,0.01004521,88257.0,88226.0,0.11330032]
[1769524350483,0.10212,88258.0,88220.0,0.01135]
[1769524350484,0.01004521,88256.0,88220.0,0.01135]
[1769524350683,0.01004521,88256.0,88221.0,0.10212]
[1769524350684,0.011348,88239.0,88221.0,0.10212]
[1769524350880,0.01002256,88250.0,88221.0,0.10212]
[1769524351083,0.011348,88235.0,88221.0,0.10212]
[1769524351295,0.011348,88238.0,88221.0,0.10212]
[1769524351594,0.01002256,88247.0,88220.0,0.01135]
[1769524351595,0.011347,88241.0,88220.0,0.01135]
[1769524351790,0.011347,88241.0,88222.0,0.01135]
[1769524351991,0.011347,88241.0,88223.0,0.10208]
[1769524352188,0.011348,88239.0,88223.0,0.10208]
[1769524352381,0.10208,88246.0,88223.0,0.10208]
[1769524352587,0.011347,88244.0,88223.0,0.10208]
[1769524352788,0.10208,88246.0,88223.0,0.10208]
[1769524353197,0.0099962,88244.0,88223.0,0.10208]
[1769524353497,0.011344,88266.0,88230.0,0.011349]
[1769524353498,0.0099962,88257.0,88230.0,0.011349]
[1769524353690,0.10212,88256.0,88230.0,0.011349]
[1769524353893,0.011346,88255.0,88223.0,0.10208]
[1769524354090,0.011346,88255.0,88236.0,0.011348]
[1769524354293,0.10212,88254.0,88236.0,0.011348]
[1769524354595,0.10212,88254.0,88235.0,0.011348]
[1769524354895,0.10212,88254.0,88236.0,0.011348]
[1769524355094,0.10212,88254.0,88225.0,0.11332022]
[1769524355095,0.011345,88259.0,88227.0,0.011349]
[1769524355293,0.11211841,88278.0,88250.0,0.011346]
[1769524355491,0.01700728,88273.0,88252.0,0.011346]
[1769524355691,0.00566428,88273.0,88250.0,0.10212]
[1769524355890,0.01700728,88273.0,88250.0,0.10212]
[1769524356094,0.00566428,88273.0,88250.0,0.10212]
[1769524356297,0.011345,88262.0,88241.0,0.011347]
[1769524356494,0.011345,88262.0,88242.0,0.10212]
[1769524356687,0.00566428,88273.0,88242.0,0.10212]
[1769524356894,0.00566428,88273.0,88253.0,0.011346]
[1769524357791,0.00566428,88273.0,88245.0,0.00020611]
[1769524357993,2.8e-07,88273.0,88255.0,0.00020611]
[1769524358200,2.8e-07,88273.0,88264.0,0.011344]
[1769524359102,2.8e-07,88273.0,88256.0,0.10208]
[1769524359103,2.8e-07,88273.0,88260.0,0.00018585]
[1769524359601,2.8e-07,88273.0,88271.0,0.011344]
[1769524359788,0.022342,88287.0,88266.0,0.011344]
[1769524360702,0.022342,88287.0,88264.0,0.011344]
[1769524361003,0.011342,88283.0,88264.0,0.011344]
[1769524361300,0.009948,88286.0,88251.0,0.00015598]
[1769524361597,0.011,88287.0,88251.0,0.00015598]
[1769524361598,0.011342,88281.0,88261.0,0.011345]
[1769524361901,0.009948,88283.0,88263.0,0.011345]
[1769524362401,0.011342,88282.0,88262.0,0.011345]
[1769524362706,0.011,88287.0,88252.0,0.10208]
[1769524362707,0.011,88287.0,88259.0,0.00015598]
[1769524362893,0.10208,88286.0,88262.0,0.00017445]
[1769524363089,0.011339,88305.0,88285.0,0.011342]
[1769524363294,0.01786824,88313.0,88282.0,0.01151645]
[1769524363295,0.01134,88303.0,88282.0,0.01151645]
[1769524363601,0.10208,88306.0,88282.0,0.00017445]
[1769524363798,0.10208,88306.0,88287.0,0.011341]
[1769524364106,0.10208,88306.0,88282.0,0.00017445]
[1769524364305,0.10208,88306.0,88291.0,0.011341]
[1769524364899,0.01786824,88313.0,88291.0,0.011341]
[1769524364900,0.0079264,88313.0,88297.0,0.01134]
[1769524365098,0.01077979,88307.0,88297.0,0.01134]
[1769524365305,0.0079264,88313.0,88297.0,0.01134]
[1769524365505,0.0079264,88313.0,88290.0,0.10208]
[1769524365506,0.00999999,88342.0,88294.0,0.011341]
[1769524365803,1e-06,88327.0,88323.0,0.011337]
[1769524366004,0.10208,88338.0,88319.0,0.113417]
[1769524366210,0.10208,88338.0,88320.0,0.10208]
[1769524366402,0.10208,88338.0,88320.0,0.113417]
[1769524366603,0.02615112,88343.0,88320.0,0.113417]
[1769524366604,0.02615112,88343.0,88320.0,0.10208]
[1769524366816,1.02092,88389.0,88321.0,0.11321374]
[1769524366817,0.10208,88369.0,88321.0,0.11321374]
[1769524367102,0.01001089,88352.0,88321.0,0.11321374]
[1769524367310,0.011334,88345.0,88322.0,0.10208]
[1769524367498,0.01001089,88352.0,88322.0,0.10208]
[1769524367499,0.011334,88349.0,88322.0,0.10208]
[1769524367699,0.011334,88349.0,88319.0,0.29872]
[1769524367700,0.011335,88340.0,88323.0,0.10208]
[1769524367899,0.01001089,88345.0,88302.0,0.01134]
[1769524368207,0.00792281,88353.0,88307.0,0.11320348]
[1769524368208,0.011336,88329.0,88307.0,0.11320348]
[1769524368405,0.011336,88329.0,88308.0,0.10204]
[1769524368604,0.01001089,88331.0,88308.0,0.10204]
[1769524369509,0.01012091,88326.0,88308.0,0.10204]
[1769524369705,0.011336,88331.0,88308.0,0.10204]
[1769524370204,0.10204,88332.0,88308.0,0.10204]
[1769524370205,0.10204,88332.0,88315.0,0.011338]
[1769524370708,0.011335,88335.0,88311.0,0.011338]
[1769524370902,0.10204,88336.0,88311.0,0.011338]
[1769524371110,0.011336,88333.0,88308.0,0.10204]
[1769524371310,0.011336,88333.0,88309.0,0.011339]
[1769524371506,0.11205726,88336.0,88308.0,0.10204]
[1769524371714,0.01001726,88335.0,88308.0,0.10204]
[1769524372211,0.011336,88329.0,88308.0,0.10204]
[1769524372512,0.01001726,88335.0,88308.0,0.10204]
[1769524372513,0.011337,88323.0,88308.0,0.10204]
[1769524372696,0.011336,88327.0,88308.0,0.10204]
[1769524373806,0.011336,88331.0,88309.0,0.011339]
[1769524374013,0.10204,88332.0,88308.0,0.10204]
[1769524374513,0.01000149,88328.0,88293.0,0.011341]
[1769524374714,0.01000149,88328.0,88302.0,0.01134]
[1769524374715,0.011337,88325.0,88302.0,0.01134]
[1769524375110,0.011337,88323.0,88299.0,0.01134]
[1769524375304,0.01000149,88328.0,88299.0,0.01134]
[1769524375618,0.01000149,88328.0,88296.0,8.748e-05]
[1769524375809,0.01000149,88328.0,88301.0,0.01134]
[1769524376008,0.01000149,88328.0,88297.0,0.11323617]
[1769524376208,0.011339,88311.0,88294.0,0.10204]
[1769524376407,0.011339,88309.0,88294.0,0.10204]
[1769524376603,0.00997083,88310.0,88290.0,0.10204]
[1769524377403,0.2986,88346.0,88290.0,0.10204]
[1769524377404,0.011336,88327.0,88306.0,0.011339]
[1769524377603,0.00997232,88333.0,88301.0,8.303e-05]
[1769524377604,0.011336,88331.0,88301.0,8.303e-05]
[1769524377808,0.00997232,88333.0,88292.0,0.011341]
[1769524377809,0.10204,88330.0,88312.0,0.011338]
[1769524378117,0.10204,88330.0,88317.0,0.011338]
[1769524378320,0.10204,88330.0,88313.0,0.011338]
[1769524378616,0.113376,88330.0,88309.0,8.303e-05]
[1769524378817,0.10204,88330.0,88311.0,0.011338]
[1769524379013,0.10204,88330.0,88313.0,0.011338]
[1769524379220,0.10204,88330.0,88312.0,0.00015656]
[1769524379511,0.10204,88330.0,88317.0,0.011338]
[1769524379712,0.10204,88330.0,88303.0,0.11322015]
[1769524379713,0.10204,88330.0,88304.0,0.00015656]
[1769524379912,0.10204,88330.0,88301.0,0.01134]
[1769524379913,0.00994781,88329.0,88301.0,0.01134]
[1769524380114,0.00994781,88329.0,88289.0,0.011341]
[1769524380115,0.00994781,88329.0,88303.0,0.011339]
[1769524380317,0.10204,88330.0,88305.0,0.00015656]
[1769524380619,0.10204,88330.0,88312.0,0.00015656]
[1769524381117,0.011337,88322.0,88290.0,0.011341]
[1769524381310,0.00999045,88327.0,88285.0,0.011342]
[1769524381614,0.011341,88295.0,88291.0,7.6e-07]
[1769524381815,0.011341,88292.0,88280.0,0.10204]
[1769524382003,0.01134,88299.0,88280.0,0.10204]
[1769524382203,0.44463782,88320.0,88280.0,0.10204]
[1769524382204,0.011,88367.0,88280.0,0.10204]
[1769524382419,0.00999045,88336.0,88300.0,0.14607782]
[1769524382619,0.11203045,88335.0,88317.0,0.011338]
[1769524382819,0.11324258,88345.0,88314.0,0.10204]
[1769524382820,0.10204,88334.0,88314.0,0.10204]
[1769524383006,0.10204,88334.0,88315.0,0.10204]
[1769524383212,0.10204,88334.0,88325.0,0.011337]
[1769524383421,0.10204,88342.0,88329.0,0.011336]
[1769524383813,0.10204,88342.0,88325.0,0.011337]
[1769524384009,0.10204,88342.0,88280.0,0.15741982]
[1769524384010,0.01004885,88337.0,88280.0,0.15741982]
[1769524384212,0.01004885,88332.0,88307.0,0.011339]
[1769524384413,0.01004885,88332.0,88308.0,0.10204]
[1769524384616,0.011336,88331.0,88308.0,0.10204]
[1769524384917,0.011,88347.0,88293.0,0.1674916]
[1769524384918,0.01003735,88314.0,88293.0,0.102]
[1769524385216,0.01003735,88312.0,88293.0,0.102]
[1769524385415,0.102,88316.0,88293.0,0.102]
[1769524385612,0.01003735,88315.0,88293.0,0.102]
[1769524385816,0.01003735,88314.0,88287.0,0.011341]